fUSD/lending_fUSD_20240122
["ID","MTS","AMOUNT","RATE_DAILY","PERIOD"]
[312525175,1705942301348,-500.0,0.00056164,120]
[312525176,1705942301358,-535.82,0.00056164,120]
[312525177,1705942301368,-987.66,0.00056164,120]
[312525178,1705942301377,-500.0,0.00056164,120]
[312525179,1705942301386,-500.0,0.00056164,120]
[312525180,1705942301398,-1207.6,0.00056164,120]
[312525181,1705942301407,-500.0,0.00056164,120]
[312525182,1705942301416,-799.27,0.00056164,120]
[312525183,1705942301425,-509.48,0.00056164,120]
[312525184,1705942301435,-956.9,0.00056164,120]
[312525185,1705942301445,-1236.74,0.00056164,120]
[312525186,1705942301455,-794.46,0.00056164,120]
[312525187,1705942301465,-500.0,0.00056164,120]
[312525188,1705942301475,-676.21,0.00056164,120]
[312525189,1705942301491,-784.83,0.00056164,120]
[312525190,1705942301501,-500.0,0.00056164,120]
[312525191,1705942301512,-1206.35,0.00056164,120]
[312525192,1705942301523,-1325.76,0.00056164,120]
[312525193,1705942301534,-500.0,0.00056164,7]
[312525194,1705942301544,-940.83,0.00056164,120]
[312525195,1705942301554,-766.88,0.00056164,120]
[312525196,1705942301564,-500.0,0.00056164,120]
[312525197,1705942301575,-882.54,0.00056164,2]
[312525198,1705942301585,-1098.14,0.00056164,120]
[312525199,1705942301594,-1272.77,0.00056164,120]
[312525200,1705942301605,-855.01,0.00056164,120]
[312525201,1705942301615,-1433.57,0.00056164,120]
[312525202,1705942301624,-500.0,0.00056164,120]
[312525203,1705942301634,-500.0,0.00056164,120]
[312525204,1705942301645,-1004.38,0.00056164,120]
[312525205,1705942301654,-613.63,0.00056164,120]
[312525206,1705942301663,-500.0,0.00056164,120]
[312525207,1705942301673,-500.0,0.00056164,120]
[312525208,1705942301682,-511.59,0.00056164,120]
[312525209,1705942301692,-851.13,0.00056164,120]
[312525210,1705942301702,-933.89,0.00056164,120]
[312525211,1705942301713,-711.76,0.00056164,120]
[312525212,1705942301723,-500.0,0.00056164,120]
[312525213,1705942301733,-572.52,0.00056164,120]
[312525214,1705942301743,-500.0,0.00056164,120]
[312525215,1705942301753,-773.03,0.00056164,120]
[312525216,1705942301763,-500.0,0.00056164,120]
[312525217,1705942301774,-762.64,0.00056164,120]
[312525218,1705942301784,-1058.65,0.00056164,120]
[312525219,1705942301793,-500.0,0.00056164,120]
[312525220,1705942301803,-509.59,0.00056164,120]
[312525221,1705942301813,-665.88,0.00056164,120]
[312525222,1705942301822,-1002.76,0.00056164,120]
[312525223,1705942301832,-500.0,0.00056164,120]
[312525224,1705942301842,-904.02,0.00056164,120]
[312525225,1705942301851,-827.04,0.00056164,120]
[312525226,1705942301861,-500.0,0.00056164,120]
[312525227,1705942301871,-704.08,0.00056164,120]
[312525228,1705942301881,-787.53,0.00056164,120]
[312525229,1705942301892,-1047.73,0.00056164,120]
[312525230,1705942301901,-872.35,0.00056164,120]
[312525231,1705942301910,-500.0,0.00056164,120]
[312525232,1705942301919,-500.0,0.00056164,120]
[312525233,1705942301929,-500.0,0.00056164,120]
[312525234,1705942302009,-973.07,0.00056164,120]
[312525235,1705942302018,-500.0,0.00056164,120]
[312525236,1705942302027,-1055.58,0.00056164,120]
[312525237,1705942302037,-543.86813947,0.00056164,120]
[312525238,1705942302047,-592.41,0.00056164,120]
[312525239,1705942302056,-500.0,0.00056164,120]
[312525240,1705942302065,-500.0,0.00056164,120]
[312525241,1705942302075,-500.0,0.00056164,120]
[312525242,1705942302083,-1284.43,0.00056164,120]
[312525243,1705942302093,-500.0,0.00056164,120]
[312525244,1705942302102,-1139.91,0.00056164,120]
[312525245,1705942302111,-247.08451426,0.00056164,120]
[312525246,1705942302120,-500.0,0.00056164,120]
[312525247,1705942302129,-562.17,0.00056164,120]
[312525248,1705942302138,-539.03,0.00056164,120]
[312525249,1705942302149,-500.0,0.00056164,120]
[312525250,1705942302158,-1374.87,0.00056164,120]
[312525251,1705942302167,-750.36,0.00056164,120]
[312525252,1705942302176,-711.43,0.00056164,120]
[312525253,1705942302185,-579.03,0.00056164,120]
[312525254,1705942302194,-500.0,0.00056164,120]
[312525255,1705942302203,-1076.02,0.00056164,120]
[312525256,1705942302213,-500.0,0.00056164,120]
[312525257,1705942302222,-1080.86,0.00056164,120]
[312525258,1705942302232,-559.5,0.00056164,120]
[312525259,1705942302240,-500.0,0.00056164,120]
[312525260,1705942302249,-1198.92,0.00056164,120]
[312525261,1705942302258,-546.17,0.00056164,120]
[312525262,1705942302269,-1032.79,0.00056164,120]
[312525263,1705942302278,-912.89,0.00056164,120]
[312525264,1705942302287,-1291.04,0.00056164,120]
[312525265,1705942302297,-719.62,0.00056164,120]
[312525266,1705942302305,-1228.18,0.00056164,120]
[312525267,1705942302314,-500.0,0.00056164,120]
[312525268,1705942302324,-500.0,0.00056164,120]
[312525269,1705942302333,-1064.71,0.00056164,120]
[312525270,1705942302342,-933.5,0.00056164,120]
[312525271,1705942302352,-500.0,0.00056164,120]
[312525272,1705942302361,-500.0,0.00056164,120]
[312525273,1705942302371,-512.46,0.00056164,120]
[312525274,1705942302380,-1092.85,0.00056164,120]
[312525275,1705942302389,-1122.93,0.00056164,120]
[312525276,1705942302399,-834.87,0.00056164,120]
[312525277,1705942302408,-1098.97,0.00056164,120]
[312525278,1705942302417,-500.0,0.00056164,120]
[312525279,1705942302426,-500.0,0.00056164,120]
[312525280,1705942302435,-500.0,0.00056164,120]
[312525281,1705942302443,-1124.27,0.00056164,120]
[312525282,1705942302452,-500.0,0.00056164,120]
[312525283,1705942302461,-548.35,0.00056164,120]
[312525284,1705942302470,-676.24,0.00056164,120]
[312525285,1705942302481,-500.0,0.00056164,120]
[312525286,1705942302491,-1183.29,0.00056164,120]
[312525287,1705942302502,-1234.09,0.00056164,120]
[312525288,1705942302511,-500.0,0.00056164,120]
[312525289,1705942302520,-500.0,0.00056164,120]
[312525290,1705942302529,-500.0,0.00056164,120]
[312525291,1705942302540,-500.0,0.00056164,120]
[312525292,1705942302549,-942.51,0.00056164,120]
[312525293,1705942302559,-539.8,0.00056164,120]
[312525294,1705942302570,-500.0,0.00056164,120]
[312525295,1705942302579,-1200.35,0.00056164,120]
[312525296,1705942302588,-995.47,0.00056164,120]
[312525297,1705942302598,-500.0,0.00056164,120]
[312525298,1705942302608,-1034.97,0.00056164,120]
[312525299,1705942302617,-500.0,0.00056164,120]
[312525300,1705942302627,-500.0,0.00056164,120]
[312525301,1705942302638,-874.88,0.00056164,120]
[312525302,1705942302648,-507.23,0.00056164,120]
[312525303,1705942302658,-514.2,0.00056164,120]
[312525304,1705942302669,-562.05,0.00056164,120]
[312525305,1705942302678,-1038.58,0.00056164,120]
[312525306,1705942302688,-1546.51,0.00056164,2]
[312525307,1705942302698,-500.0,0.00056164,120]
[312525308,1705942302708,-1166.09,0.00056164,120]
[312525309,1705942302717,-552.78,0.00056164,120]
[312525310,1705942302727,-500.0,0.00056164,120]
[312525311,1705942302736,-916.75,0.00056164,120]
[312525312,1705942302747,-500.0,0.00056164,120]
[312525313,1705942302757,-731.13,0.00056164,120]
[312525314,1705942302766,-825.25,0.00056164,120]
[312525315,1705942302775,-703.42,0.00056164,120]
[312525316,1705942302785,-692.04,0.00056164,120]
[312525317,1705942302796,-597.16,0.00056164,120]
[312525318,1705942302805,-609.93,0.00056164,120]
[312525319,1705942302815,-500.0,0.00056164,120]
[312525320,1705942302824,-668.81,0.00056164,120]
[312525321,1705942302834,-604.43,0.00056164,120]
[312525322,1705942302844,-563.70622086,0.00056164,120]
[312525323,1705942302854,-435.51,0.00056164,120]
[312525324,1705942302863,-820.72,0.00056164,120]
[312525325,1705942302874,-500.0,0.00056164,120]
[312525326,1705942302883,-500.0,0.00056164,2]
[312525327,1705942302893,-510.66,0.00056164,120]
[312525328,1705942302902,-1104.92,0.00056164,120]
[312525329,1705942302911,-500.0,0.00056164,120]
[312525330,1705942302921,-500.0,0.00056164,120]
[312525331,1705942302930,-150.0,0.00056164,14]
[312525332,1705942302940,-611.57,0.00056164,120]
[312525333,1705942302950,-500.0,0.00056164,120]
[312525334,1705942302959,-705.3,0.00056164,120]
[312525335,1705942302969,-782.46,0.00056164,120]
[312525336,1705942302978,-1193.75,0.00056164,120]
[312525337,1705942302988,-500.0,0.00056164,120]
[312525338,1705942302997,-500.0,0.00056164,120]
[312525339,1705942303007,-841.24,0.00056164,120]
[312525340,1705942303017,-774.06,0.00056164,120]
[312525341,1705942303027,-500.0,0.00056164,120]
[312525342,1705942303036,-706.09,0.00056164,120]
[312525343,1705942303046,-1049.13,0.00056164,120]
[312525344,1705942303056,-500.0,0.00056164,120]
[312525345,1705942303066,-722.39,0.00056164,120]
[312525346,1705942303075,-500.0,0.00056164,120]
[312525347,1705942303085,-500.0,0.00056164,120]
[312525348,1705942303095,-1098.78,0.00056164,120]
[312525349,1705942303104,-1040.43,0.00056164,120]
[312525350,1705942303115,-676.51,0.00056164,120]
[312525351,1705942303124,-330.80654242,0.00056164,7]
[312525352,1705942303134,-800.29,0.00056164,120]
[312525353,1705942303144,-977.04,0.00056164,120]
[312525354,1705942303153,-622.73,0.00056164,120]
[312525355,1705942303163,-940.44,0.00056164,120]
[312525356,1705942303172,-812.24,0.00056164,120]
[312525357,1705942303182,-4003.53,0.00056164,120]
[312525358,1705942303191,-762.89,0.00056164,120]
[312525359,1705942303201,-543.32,0.00056164,120]
[312525360,1705942303211,-683.59,0.00056164,120]
[312525361,1705942303221,-735.35,0.00056164,120]
[312525362,1705942303230,-500.0,0.00056164,120]
[312525363,1705942303239,-500.0,0.00056164,120]
[312525364,1705942303249,-7945.75,0.00056164,120]
[312525365,1705942303259,-554.53851626,0.00056164,120]
[312525366,1705942303269,-752.98,0.00056164,120]
[312525367,1705942303279,-1119.94,0.00056164,120]
[312525368,1705942303288,-658.72,0.00056164,120]
[312525369,1705942303298,-590.12,0.00056164,120]
[312525370,1705942303308,-500.0,0.00056164,120]
[312525371,1705942303318,-530.21806298,0.00056164,120]
[312525372,1705942303328,-500.0,0.00056164,120]
[312525373,1705942303337,-1197.36,0.00056164,120]
[312525374,1705942303347,-873.76,0.00056164,120]
[312525375,1705942303357,-536.78,0.00056164,120]
[312525376,1705942303366,-500.0,0.00056164,120]
[312525377,1705942303375,-1072.31,0.00056164,120]
[312525378,1705942303385,-500.0,0.00056164,120]
[312525379,1705942303395,-916.28,0.00056164,120]
[312525380,1705942303405,-500.0,0.00056164,120]
[312525381,1705942303415,-894.82,0.00056164,120]
[312525382,1705942303424,-500.0,0.00056164,120]
[312525383,1705942303433,-563.54,0.00056164,120]
[312525384,1705942303444,-984.92,0.00056164,120]
[312525385,1705942303454,-500.0,0.00056164,120]
[312525386,1705942303463,-2024.59,0.00056164,7]
[312525387,1705942303474,-500.0,0.00056164,120]
[312525388,1705942303485,-500.0,0.00056164,120]
[312525389,1705942303497,-500.0,0.00056164,120]
[312525390,1705942303506,-873.84,0.00056164,120]
[312525391,1705942303516,-500.0,0.00056164,120]
[312525392,1705942303526,-1503.79,0.00056164,120]
[312525393,1705942303536,-500.0,0.00056164,120]
[312525394,1705942303547,-500.0,0.00056164,120]
[312525395,1705942303557,-646.15,0.00056164,120]
[312525396,1705942303567,-781.35,0.00056164,120]
[312525397,1705942303577,-564.76,0.00056164,120]
[312525398,1705942303587,-1064.36,0.00056164,120]
[312525399,1705942303597,-519.13,0.00056164,120]
[312525400,1705942303607,-1095.74,0.00056164,120]
[312525401,1705942303617,-1291.13,0.00056164,120]
[312525402,1705942303627,-500.0,0.00056164,120]
[312525403,1705942303636,-712.79,0.00056164,120]
[312525404,1705942303647,-500.0,0.00056164,120]
[312525405,1705942303657,-736.14,0.00056164,120]
[312525406,1705942303667,-1311.07,0.00056164,120]
[312525407,1705942303677,-500.0,0.00056164,120]
[312525408,1705942303687,-500.0,0.00056164,120]
[312525409,1705942303696,-500.0,0.00056164,120]
[312525410,1705942303706,-500.0,0.00056164,120]
[312525411,1705942303716,-500.0,0.00056164,120]
[312525412,1705942303726,-997.27,0.00056164,120]
[312525413,1705942303736,-1000.0,0.00056164,7]
[312525414,1705942303745,-1180.26,0.00056164,30]
[312525415,1705942303755,-879.87,0.00056164,120]
[312525416,1705942303765,-500.0,0.00056164,120]
[312525417,1705942303775,-500.0,0.00056164,120]
[312525418,1705942303784,-500.0,0.00056164,120]
[312525419,1705942303793,-500.0,0.00056164,120]
[312525420,1705942303804,-1101.52,0.00056164,120]
[312525421,1705942303813,-500.0,0.00056164,120]
[312525422,1705942303823,-1000.0,0.00056164,120]
[312525423,1705942303833,-596.97,0.00056164,120]
[312525424,1705942303842,-500.0,0.00056164,120]
[312525425,1705942303852,-677.87,0.00056164,120]
[312525426,1705942303861,-500.0,0.00056164,30]
[312525427,1705942303871,-758.09,0.00056164,120]
[312525428,1705942303881,-500.0,0.00056164,120]
[312525429,1705942303890,-678.57,0.00056164,120]
[312525430,1705942303902,-500.0,0.00056164,7]
[312525431,1705942303911,-500.0,0.00056164,120]
[312525432,1705942303921,-764.95,0.00056164,120]
[312525433,1705942303931,-535.75,0.00056164,120]
[312525434,1705942303941,-542.23194909,0.00056164,120]
[312525435,1705942303951,-1153.09,0.00056164,120]
[312525436,1705942303961,-768.51,0.00056164,120]
[312525437,1705942303971,-500.0,0.00056164,120]
[312525438,1705942303981,-1045.19,0.00056164,120]
[312525439,1705942303991,-500.0,0.00056164,120]
[312525440,1705942304001,-876.25,0.00056164,120]
[312525441,1705942304010,-552.31,0.00056164,120]
[312525442,1705942304020,-697.88,0.00056164,120]
[312525443,1705942304030,-500.0,0.00056164,120]
[312525444,1705942304040,-619.89,0.00056164,120]
[312525445,1705942304050,-746.34,0.00056164,120]
[312525446,1705942304059,-503.91,0.00056164,120]
[312525447,1705942304069,-770.55,0.00056164,120]
[312525448,1705942304080,-515.99,0.00056164,120]
[312525449,1705942304090,-533.69,0.00056164,120]
[312525450,1705942304099,-500.0,0.00056164,120]
[312525451,1705942304110,-1181.85,0.00056164,120]
[312525452,1705942304120,-500.0,0.00056164,120]
[312525453,1705942304130,-1727.31,0.00056164,120]
[312525454,1705942304139,-500.0,0.00056164,120]
[312525455,1705942304150,-500.0,0.00056164,120]
[312525456,1705942304159,-500.0,0.00056164,120]
[312525457,1705942304169,-953.83,0.00056164,120]
[312525458,1705942304179,-609.57,0.00056164,120]
[312525459,1705942304191,-500.0,0.00056164,120]
[312525460,1705942304201,-759.29,0.00056164,120]
[312525461,1705942304213,-517.57,0.00056164,120]
[312525462,1705942304222,-500.0,0.00056164,120]
[312525463,1705942304232,-500.0,0.00056164,120]
[312525464,1705942304242,-1765.42,0.00056164,120]
[312525465,1705942304252,-945.78,0.00056164,120]
[312525466,1705942304261,-563.49,0.00056164,120]
[312525467,1705942304271,-2780.15,0.00056164,120]
[312525468,1705942304281,-500.0,0.00056164,120]
[312525469,1705942304290,-1143.05,0.00056164,120]
[312525470,1705942304299,-500.0,0.00056164,120]
[312525471,1705942304309,-739.81,0.00056164,120]
[312525472,1705942304319,-500.0,0.00056164,120]
[312525473,1705942304328,-630.92,0.00056164,120]
[312525474,1705942304338,-322.46160134,0.00056164,120]
[312525475,1705942304348,-500.0,0.00056164,120]
[312525476,1705942304358,-575.76862751,0.00056164,120]
[312525477,1705942304368,-6946.56,0.00056164,120]
[312525478,1705942304377,-1112.59,0.00056164,120]
[312525479,1705942304387,-779.09,0.00056164,120]
[312525480,1705942304397,-729.29,0.00056164,120]
[312525481,1705942304407,-3649.41,0.00056164,120]
[312525482,1705942304417,-500.0,0.00056164,120]
[312525483,1705942304427,-500.0,0.00056164,120]
[312525484,1705942304436,-318.20698159,0.00056164,120]
[312525485,1705942304447,-500.0,0.00056164,120]
[312525486,1705942304456,-1830.13,0.00056164,120]
[312525487,1705942304467,-500.0,0.00056164,120]
[312525488,1705942304478,-8171.7,0.00056164,120]
[312525489,1705942304649,-598.39,0.00056164,120]
[312525490,1705942304660,-500.0,0.00056164,120]
[312525491,1705942304670,-885.03,0.00056164,120]
[312525492,1705942304680,-552.57,0.00056164,120]
[312525493,1705942304690,-500.0,0.00056164,120]
[312525494,1705942304699,-681.33,0.00056164,120]
[312525495,1705942304709,-2620.03,0.00056164,120]
[312525496,1705942304719,-500.0,0.00056164,120]
[312525497,1705942304728,-385.6,0.00056164,120]
[312525498,1705942304738,-500.0,0.00056164,120]
[312525499,1705942304747,-674.46,0.00056164,120]
[312525500,1705942304756,-580.85,0.00056164,120]
[312525501,1705942304766,-722.83,0.00056164,120]
[312525502,1705942304776,-1767.29,0.00056164,120]
[312525503,1705942304786,-500.0,0.00056164,120]
[312525504,1705942304797,-500.0,0.00056164,120]
[312525505,1705942304806,-717.86,0.00056164,120]
[312525506,1705942304816,-500.0,0.00056164,120]
[312525507,1705942304825,-500.0,0.00056164,120]
[312525508,1705942304835,-1143.05,0.00056164,120]
[312525509,1705942304844,-1133.33,0.00056164,120]
[312525510,1705942304853,-500.0,0.00056164,120]
[312525511,1705942304862,-500.0,0.00056164,120]
[312525512,1705942304871,-500.0,0.00056164,120]
[312525513,1705942304881,-540.86,0.00056164,120]
[312525514,1705942304891,-500.0,0.00056164,120]
[312525515,1705942304901,-500.0,0.00056164,120]
[312525516,1705942304910,-610.88,0.00056164,120]
[312525517,1705942304919,-5682.89,0.00056164,120]
[312525518,1705942304928,-917.6,0.00056164,120]
[312525519,1705942304938,-1451.88,0.00056164,120]
[312525520,1705942304948,-774.42,0.00056164,120]
[312525521,1705942304957,-638.56,0.00056164,120]
[312525522,1705942304967,-500.0,0.00056164,120]
[312525523,1705942304977,-2543.46,0.00056164,120]
[312525524,1705942304986,-2607.73,0.00056164,120]
[312525525,1705942304995,-745.28,0.00056164,120]
[312525526,1705942305005,-500.0,0.00056164,120]
[312525527,1705942305013,-820.5,0.00056164,120]
[312525528,1705942305023,-500.0,0.00056164,120]
[312525529,1705942305032,-1200.74,0.00056164,120]
[312525530,1705942305042,-1676.05,0.00056164,120]
[312525531,1705942305051,-3921.91,0.00056164,120]
[312525532,1705942305060,-1841.71,0.00056164,120]
[312525533,1705942305070,-500.0,0.00056164,120]
[312525534,1705942305080,-500.0,0.00056164,120]
[312525535,1705942305090,-1638.92,0.00056164,120]
[312525536,1705942305099,-500.0,0.00056164,120]
[312525537,1705942305108,-753.79,0.00056164,120]
[312525538,1705942305117,-983.65,0.00056164,120]
[312525539,1705942305126,-694.12,0.00056164,120]
[312525540,1705942305135,-760.03,0.00056164,120]
[312525541,1705942305145,-1023.91,0.00056164,120]
[312525542,1705942305155,-500.0,0.00056164,120]
[312525543,1705942305165,-1153.82,0.00056164,120]
[312525544,1705942305174,-895.96,0.00056164,120]
[312525545,1705942305184,-500.0,0.00056164,120]
[312525546,1705942305194,-500.0,0.00056164,120]
[312525547,1705942305204,-500.0,0.00056164,120]
[312525548,1705942305213,-630.13,0.00056164,120]
[312525549,1705942305223,-906.48,0.00056164,120]
[312525550,1705942305232,-500.0,0.00056164,120]
[312525551,1705942305242,-1028.29,0.00056164,120]
[312525552,1705942305251,-500.0,0.00056164,120]
[312525553,1705942305261,-649.02,0.00056164,120]
[312525554,1705942305270,-773.13,0.00056164,120]
[312525555,1705942305279,-500.0,0.00056164,120]
[312525556,1705942305289,-500.0,0.00056164,120]
[312525557,1705942305299,-768.01,0.00056164,120]
[312525558,1705942305309,-1504.11,0.00056164,120]
[312525559,1705942305318,-778.2,0.00056164,120]
[312525560,1705942305327,-1829.78,0.00056164,120]
[312525561,1705942305336,-500.0,0.00056164,120]
[312525562,1705942305346,-500.0,0.00056164,120]
[312525563,1705942305356,-543.66,0.00056164,120]
[312525564,1705942305365,-950.19,0.00056164,120]
[312525565,1705942305375,-500.0,0.00056164,120]
[312525566,1705942305384,-505.05,0.00056164,120]
[312525567,1705942305395,-1074.68,0.00056164,120]
[312525568,1705942305406,-500.0,0.00056164,120]
[312525569,1705942305415,-1213.81,0.00056164,120]
[312525570,1705942305425,-823.2,0.00056164,120]
[312525571,1705942305434,-500.0,0.00056164,120]
[312525572,1705942305443,-1115.17,0.00056164,120]
[312525573,1705942305453,-856.62,0.00056164,120]
[312525574,1705942305462,-500.0,0.00056164,120]
[312525575,1705942305472,-682.86,0.00056164,120]
[312525576,1705942305483,-500.0,0.00056164,120]
[312525577,1705942305493,-594.97,0.00056164,120]
[312525578,1705942305505,-1646.87,0.00056164,120]
[312525579,1705942305514,-500.0,0.00056164,120]
[312525580,1705942305524,-822.11,0.00056164,120]
[312525581,1705942305534,-828.1,0.00056164,120]
[312525582,1705942305545,-580.05,0.00056164,120]
[312525583,1705942305555,-500.0,0.00056164,120]
[312525584,1705942305565,-2595.41,0.00056164,120]
[312525585,1705942305575,-630.62,0.00056164,120]
[312525586,1705942305585,-500.0,0.00056164,120]
[312525587,1705942305594,-930.18,0.00056164,120]
[312525588,1705942305605,-526.63664581,0.00056164,120]
[312525589,1705942305614,-1073.28,0.00056164,120]
[312525590,1705942305624,-678.49,0.00056164,120]
[312525591,1705942305633,-742.05,0.00056164,120]
[312525592,1705942305644,-500.0,0.00056164,120]
[312525593,1705942305654,-1590.69,0.00056164,120]
[312525594,1705942305663,-829.6,0.00056164,120]
[312525595,1705942305674,-617.27,0.00056164,120]
[312525596,1705942305683,-500.0,0.00056164,120]
[312525597,1705942305693,-540.59178977,0.00056164,120]
[312525598,1705942305702,-815.78,0.00056164,120]
[312525599,1705942305711,-1543.05,0.00056164,120]
[312525600,1705942305720,-500.0,0.00056164,120]
[312525601,1705942305730,-1475.16,0.00056164,120]
[312525602,1705942305739,-714.16,0.00056164,120]
[312525603,1705942305749,-500.0,0.00056164,120]
[312525604,1705942305758,-1006.24,0.00056164,120]
[312525605,1705942305768,-758.37,0.00056164,120]
[312525606,1705942305782,-1423.08,0.00056164,120]
[312525607,1705942305801,-500.0,0.00056164,120]
[312525608,1705942305817,-765.85,0.00056164,120]
[312525609,1705942305835,-500.0,0.00056164,120]
[312525610,1705942305852,-500.0,0.00056164,120]
[312525611,1705942305867,-569.61,0.00056164,120]
[312525612,1705942305885,-695.94,0.00056164,120]
[312525613,1705942305900,-810.81,0.00056164,120]
[312525614,1705942305919,-500.0,0.00056164,120]
[312525615,1705942305935,-500.0,0.00056164,120]
[312525616,1705942305953,-2137.13,0.00056164,120]
[312525617,1705942305974,-500.0,0.00056164,120]
[312525618,1705942305991,-1195.99,0.00056164,120]
[312525619,1705942306005,-735.82,0.00056164,120]
[312525620,1705942306021,-1168.02,0.00056164,120]
[312525621,1705942306036,-675.18,0.00056164,120]
[312525622,1705942306053,-500.0,0.00056164,120]
[312525623,1705942306068,-723.21,0.00056164,120]
[312525624,1705942306085,-1962.3,0.00056164,120]
[312525625,1705942306101,-4343.32,0.00056164,120]
[312525626,1705942306115,-500.0,0.00056164,120]
[312525627,1705942306130,-809.05,0.00056164,120]
[312525628,1705942306145,-646.29,0.00056164,120]
[312525629,1705942306161,-604.97,0.00056164,120]
[312525630,1705942306177,-1467.22,0.00056164,120]
[312525631,1705942306192,-759.96,0.00056164,120]
[312525632,1705942306208,-600.2,0.00056164,120]
[312525633,1705942306223,-1223.32,0.00056164,120]
[312525634,1705942306238,-500.0,0.00056164,120]
[312525635,1705942306253,-1336.46,0.00056164,120]
[312525636,1705942306267,-776.65,0.00056164,120]
[312525637,1705942306283,-1097.52,0.00056164,120]
[312525638,1705942306297,-500.0,0.00056164,120]
[312525639,1705942306312,-3479.79,0.00056164,120]
[312525640,1705942306328,-941.86,0.00056164,120]
[312525641,1705942306343,-6928.17,0.00056164,5]
[312525642,1705942306357,-500.0,0.00056164,120]
[312525643,1705942306371,-1530.05,0.00056164,120]
[312525644,1705942306385,-630.06,0.00056164,120]
[312525645,1705942306401,-500.0,0.00056164,120]
[312525646,1705942306415,-500.0,0.00056164,120]
[312525647,1705942306430,-500.0,0.00056164,120]
[312525648,1705942306445,-631.92,0.00056164,120]
[312525649,1705942306460,-581.13,0.00056164,120]
[312525650,1705942306476,-968.66,0.00056164,120]
[312525651,1705942306493,-663.93,0.00056164,120]
[312525652,1705942306509,-729.77,0.00056164,120]
[312525653,1705942306525,-548.64,0.00056164,120]
[312525654,1705942306540,-1034.47,0.00056164,120]
[312525655,1705942306555,-500.0,0.00056164,120]
[312525656,1705942306570,-1002.03,0.00056164,120]
[312525657,1705942306587,-659.04,0.00056164,120]
[312525658,1705942306602,-500.0,0.00056164,7]
[312525659,1705942306617,-500.0,0.00056164,120]
[312525660,1705942306632,-508.5,0.00056164,120]
[312525661,1705942306647,-500.0,0.00056164,120]
[312525662,1705942306663,-669.88,0.00056164,120]
[312525663,1705942306677,-500.0,0.00056164,120]
[312525664,1705942306693,-1260.2,0.00056164,120]
[312525665,1705942306708,-1310.32,0.00056164,120]
[312525666,1705942306723,-666.0,0.00056164,120]
[312525667,1705942306740,-1375.16,0.00056164,120]
[312525668,1705942306757,-500.0,0.00056164,120]
[312525669,1705942306773,-777.93,0.00056164,120]
[312525670,1705942306789,-500.0,0.00056164,120]
[312525671,1705942306805,-780.67,0.00056164,120]
[312525672,1705942306820,-500.0,0.00056164,120]
[312525673,1705942306835,-609.64,0.00056164,120]
[312525674,1705942306850,-952.88,0.00056164,120]